[Event "*** SCC Grand Prix: Titled Tuesday Blitz"]
[Site "Chess.com"]
[Date "2020.07.14"]
[Round "10"]
[White "c_r_e_e_p_e_r"]
[Black "Schandenfreude"]
[Result "0-1"]
[WhiteElo "2306"]
[BlackElo "2458"]
[TimeControl "180+1"]
[EndTime "11:59:05 PDT"]
[Termination "Schandenfreude won by checkmate"]

1. e4 {[%clk 0:03:00.9]} 1... e6 {[%clk 0:02:57.1]} 2. d4 {[%clk 0:03:00.9]}
2... d5 {[%clk 0:02:56.9]} 3. Nd2 {[%clk 0:03:00.4]} 3... dxe4 {[%clk
0:02:57.2]} 4. Nxe4 {[%clk 0:03:00.6]} 4... Bd7 {[%clk 0:02:58.1]} 5. Nf3 {[%clk
0:02:59.1]} 5... Bc6 {[%clk 0:02:58.3]} 6. Bd3 {[%clk 0:02:58.6]} 6... Nd7
{[%clk 0:02:58.3]} 7. O-O {[%clk 0:02:54.5]} 7... Ngf6 {[%clk 0:02:57.4]} 8. Ng3
{[%clk 0:02:54.8]} 8... Be7 {[%clk 0:02:57.3]} 9. b3 {[%clk 0:02:47.3]} 9... O-O
{[%clk 0:02:55.9]} 10. c4 {[%clk 0:02:47.4]} 10... Bxf3 {[%clk 0:02:55.2]} 11.
Qxf3 {[%clk 0:02:46.8]} 11... c6 {[%clk 0:02:56.1]} 12. Bb2 {[%clk 0:02:45.8]}
12... Qa5 {[%clk 0:02:56.3]} 13. a3 {[%clk 0:02:44.5]} 13... Rfe8 {[%clk
0:02:52.3]} 14. Rfe1 {[%clk 0:02:37.3]} 14... Rad8 {[%clk 0:02:49.7]} 15. h4
{[%clk 0:02:29.9]} 15... Bf8 {[%clk 0:02:13.5]} 16. h5 {[%clk 0:02:24.1]} 16...
Qg5 {[%clk 0:02:08.4]} 17. Bc1 {[%clk 0:02:09.9]} 17... Qg4 {[%clk 0:02:05.1]}
18. Qxg4 {[%clk 0:01:58.9]} 18... Nxg4 {[%clk 0:02:03.5]} 19. Bb2 {[%clk
0:01:57.3]} 19... h6 {[%clk 0:01:54.8]} 20. Rad1 {[%clk 0:01:51.5]} 20... Ngf6
{[%clk 0:01:52.6]} 21. Bc2 {[%clk 0:01:45.4]} 21... Bd6 {[%clk 0:01:51.1]} 22.
Ne4 {[%clk 0:01:41.9]} 22... Nxe4 {[%clk 0:01:50.1]} 23. Bxe4 {[%clk 0:01:41.8]}
23... Nf6 {[%clk 0:01:45.4]} 24. Bf3 {[%clk 0:01:41.7]} 24... Bc7 {[%clk
0:01:41.7]} 25. g3 {[%clk 0:01:38.3]} 25... Rd7 {[%clk 0:01:41.3]} 26. Kg2
{[%clk 0:01:36.1]} 26... Red8 {[%clk 0:01:40.9]} 27. a4 {[%clk 0:00:58.4]} 27...
Bb6 {[%clk 0:01:34.6]} 28. c5 {[%clk 0:00:54.4]} 28... Ba5 {[%clk 0:01:31.9]}
29. Re2 {[%clk 0:00:52.6]} 29... Nd5 {[%clk 0:01:31]} 30. Rc2 {[%clk 0:00:41.7]}
30... Ne7 {[%clk 0:01:27.5]} 31. Be4 {[%clk 0:00:37]} 31... e5 {[%clk
0:01:16.2]} 32. Rc4 {[%clk 0:00:26.4]} 32... f5 {[%clk 0:00:52.9]} 33. Bf3
{[%clk 0:00:23]} 33... Bc7 {[%clk 0:00:44.7]} 34. Re1 {[%clk 0:00:15.5]} 34...
e4 {[%clk 0:00:41.6]} 35. Be2 {[%clk 0:00:14.7]} 35... Nd5 {[%clk 0:00:40.1]}
36. b4 {[%clk 0:00:07.1]} 36... Re8 {[%clk 0:00:34.6]} 37. b5 {[%clk 0:00:02]}
37... Ba5 {[%clk 0:00:32.3]} 38. Rec1 {[%clk 0:00:01.1]} 38... f4 {[%clk
0:00:28.9]} 39. Ba3 {[%clk 0:00:01.2]} 39... f3+ {[%clk 0:00:28.5]} 40. Bxf3
{[%clk 0:00:01.7]} 40... exf3+ {[%clk 0:00:28.7]} 41. Kxf3 {[%clk 0:00:02.6]}
41... Rf7+ {[%clk 0:00:28.3]} 42. Kg2 {[%clk 0:00:02.8]} 42... Re2 {[%clk
0:00:26]} 43. Kf1 {[%clk 0:00:01.9]} 43... Rfxf2+ {[%clk 0:00:25]} 44. Kg1
{[%clk 0:00:02.5]} 44... Rg2+ {[%clk 0:00:24.8]} 45. Kh1 {[%clk 0:00:03.1]}
45... Rh2+ {[%clk 0:00:24.8]} 46. Kg1 {[%clk 0:00:03.8]} 46... Reg2+ {[%clk
0:00:24.7]} 47. Kf1 {[%clk 0:00:04.5]} 47... Ne3# {[%clk 0:00:24.8]} 0-1

[Event "*** SCC Grand Prix: Titled Tuesday Blitz"]
[Site "Chess.com"]
[Date "2020.07.14"]
[Round "10"]
[White "PavelShkapenko"]
[Black "TokChess"]
[Result "1-0"]
[WhiteElo "2594"]
[BlackElo "2439"]
[TimeControl "180+1"]
[EndTime "11:59:06 PDT"]
[Termination "PavelShkapenko won by resignation"]

1. e4 {[%clk 0:02:59.4]} 1... c5 {[%clk 0:03:00.5]} 2. c3 {[%clk 0:02:59.2]}
2... Nf6 {[%clk 0:03:00.3]} 3. e5 {[%clk 0:02:59.5]} 3... Nd5 {[%clk 0:03:00.7]}
4. d4 {[%clk 0:02:58.5]} 4... cxd4 {[%clk 0:03:01.4]} 5. cxd4 {[%clk 0:02:58.4]}
5... d6 {[%clk 0:03:01.6]} 6. Nf3 {[%clk 0:02:58.2]} 6... Nc6 {[%clk 0:03:01.8]}
7. Bc4 {[%clk 0:02:58.1]} 7... e6 {[%clk 0:03:02.1]} 8. O-O {[%clk 0:02:54.9]}
8... Be7 {[%clk 0:03:02.3]} 9. Bd2 {[%clk 0:02:54.2]} 9... O-O {[%clk
0:03:02.4]} 10. Nc3 {[%clk 0:02:54.4]} 10... Nxc3 {[%clk 0:02:56.7]} 11. Bxc3
{[%clk 0:02:54.3]} 11... dxe5 {[%clk 0:02:56.8]} 12. dxe5 {[%clk 0:02:53.9]}
12... b6 {[%clk 0:02:48.3]} 13. Qe2 {[%clk 0:02:52]} 13... Bb7 {[%clk
0:02:48.8]} 14. Rac1 {[%clk 0:02:48]} 14... Rc8 {[%clk 0:02:28.8]} 15. Bd3
{[%clk 0:02:47.1]} 15... Nb4 {[%clk 0:02:20.9]} 16. Bb1 {[%clk 0:02:16.9]} 16...
Qd5 {[%clk 0:01:28.4]} 17. Rfd1 {[%clk 0:02:11.3]} 17... Qc4 {[%clk 0:01:28.6]}
18. Qxc4 {[%clk 0:01:21]} 18... Rxc4 {[%clk 0:01:28.2]} 19. Rd7 {[%clk
0:01:11.4]} 19... Bxf3 {[%clk 0:01:23.2]} 20. Rxe7 {[%clk 0:01:11.2]} 20... Bh5
{[%clk 0:00:18]} 21. Rxa7 {[%clk 0:01:01.4]} 21... Bg6 {[%clk 0:00:18.1]} 22.
Bxg6 {[%clk 0:00:55.3]} 22... hxg6 {[%clk 0:00:18.6]} 23. Ra4 {[%clk 0:00:54.7]}
23... Rfc8 {[%clk 0:00:16.8]} 24. Rd1 {[%clk 0:00:45.4]} 24... Nd5 {[%clk
0:00:16.4]} 25. Rxc4 {[%clk 0:00:44]} 25... Rxc4 {[%clk 0:00:17]} 26. Bd4 {[%clk
0:00:43.8]} 26... Rc2 {[%clk 0:00:15.3]} 27. g3 {[%clk 0:00:43.8]} 27... Kf8
{[%clk 0:00:15.5]} 28. Kg2 {[%clk 0:00:43.5]} 28... Ke8 {[%clk 0:00:16]} 29. Kf3
{[%clk 0:00:43.9]} 29... Kd7 {[%clk 0:00:16.1]} 30. Ke4 {[%clk 0:00:44.2]} 30...
Kc6 {[%clk 0:00:15.6]} 31. Kd3 {[%clk 0:00:44.5]} 31... Nb4+ {[%clk 0:00:13.2]}
32. Ke4 {[%clk 0:00:44.1]} 32... Nd5 {[%clk 0:00:12.7]} 33. a3 {[%clk
0:00:42.1]} 33... Kb5 {[%clk 0:00:12.1]} 34. Kd3 {[%clk 0:00:40.9]} 34... Rc8
{[%clk 0:00:10.5]} 35. Rd2 {[%clk 0:00:39.3]} 35... Ka4 {[%clk 0:00:10.6]} 36.
Rc2 {[%clk 0:00:39]} 36... Rxc2 {[%clk 0:00:08.9]} 37. Kxc2 {[%clk 0:00:38.7]}
37... g5 {[%clk 0:00:08.3]} 38. h3 {[%clk 0:00:36.6]} 38... g6 {[%clk
0:00:08.1]} 39. f3 {[%clk 0:00:32.7]} 39... b5 {[%clk 0:00:06.2]} 40. Bc5 {[%clk
0:00:32.9]} 40... Ka5 {[%clk 0:00:04.1]} 41. b3 {[%clk 0:00:32.1]} 41... Ka6
{[%clk 0:00:03.9]} 42. Kd3 {[%clk 0:00:31.9]} 42... Kb7 {[%clk 0:00:04.1]} 43.
Be3 {[%clk 0:00:25.2]} 43... Kc6 {[%clk 0:00:03.2]} 44. Bxg5 {[%clk 0:00:24.9]}
44... Nc7 {[%clk 0:00:03.5]} 45. Ke4 {[%clk 0:00:24]} 45... Kc5 {[%clk
0:00:03.6]} 46. Be3+ {[%clk 0:00:23.8]} 46... Kc6 {[%clk 0:00:03.5]} 47. h4
{[%clk 0:00:23.8]} 47... Nd5 {[%clk 0:00:03.9]} 48. Bd2 {[%clk 0:00:23.7]} 48...
Ne7 {[%clk 0:00:03.8]} 49. g4 {[%clk 0:00:23.9]} 49... Ng8 {[%clk 0:00:04.3]}
50. Bg5 {[%clk 0:00:23.2]} 1-0

[Event "*** SCC Grand Prix: Titled Tuesday Blitz"]
[Site "Chess.com"]
[Date "2020.07.14"]
[Round "10"]
[White "TioCridineno"]
[Black "Colombiano07"]
[Result "0-1"]
[WhiteElo "2157"]
[BlackElo "2317"]
[TimeControl "180+1"]
[EndTime "11:59:07 PDT"]
[Termination "Colombiano07 won by resignation"]

1. e4 {[%clk 0:03:00.9]} 1... c5 {[%clk 0:02:58.3]} 2. Nf3 {[%clk 0:02:58.8]}
2... g6 {[%clk 0:02:58.2]} 3. Nc3 {[%clk 0:02:55.4]} 3... Bg7 {[%clk 0:02:57.7]}
4. g3 {[%clk 0:02:54.9]} 4... Nc6 {[%clk 0:02:57.7]} 5. Bg2 {[%clk 0:02:54.2]}
5... e6 {[%clk 0:02:57.6]} 6. O-O {[%clk 0:02:53.7]} 6... Nge7 {[%clk
0:02:58.3]} 7. d3 {[%clk 0:02:54]} 7... O-O {[%clk 0:02:58.6]} 8. Be3 {[%clk
0:02:54.1]} 8... Nd4 {[%clk 0:02:58.2]} 9. Qd2 {[%clk 0:02:49.8]} 9... d5 {[%clk
0:02:55.7]} 10. Nd1 {[%clk 0:02:35.9]} 10... dxe4 {[%clk 0:02:39.5]} 11. dxe4
{[%clk 0:02:34.7]} 11... Nxf3+ {[%clk 0:02:39.7]} 12. Bxf3 {[%clk 0:02:33.5]}
12... Qxd2 {[%clk 0:02:40.6]} 13. Bxd2 {[%clk 0:02:33.4]} 13... Bd7 {[%clk
0:02:39.5]} 14. Bc3 {[%clk 0:02:31.7]} 14... Bc6 {[%clk 0:02:34.8]} 15. Bxg7
{[%clk 0:02:31.1]} 15... Kxg7 {[%clk 0:02:35.7]} 16. Bg2 {[%clk 0:02:22.8]}
16... Rad8 {[%clk 0:02:34.2]} 17. Ne3 {[%clk 0:02:23]} 17... Rd2 {[%clk
0:02:18.7]} 18. Rfd1 {[%clk 0:02:22.5]} 18... Rfd8 {[%clk 0:02:18.4]} 19. Rxd2
{[%clk 0:02:22.9]} 19... Rxd2 {[%clk 0:02:19.3]} 20. Rd1 {[%clk 0:02:23.3]}
20... Rxd1+ {[%clk 0:02:17.7]} 21. Nxd1 {[%clk 0:02:23.5]} 21... Kf6 {[%clk
0:02:18.6]} 22. f4 {[%clk 0:02:22.7]} 22... e5 {[%clk 0:02:14.5]} 23. Kf2 {[%clk
0:02:22.6]} 23... Ke6 {[%clk 0:02:11.7]} 24. Ne3 {[%clk 0:02:07.3]} 24... f6
{[%clk 0:02:09.8]} 25. c3 {[%clk 0:02:05.1]} 25... b6 {[%clk 0:02:09.6]} 26. Bf3
{[%clk 0:02:03.3]} 26... Nc8 {[%clk 0:02:04.2]} 27. Nc4 {[%clk 0:01:58.8]} 27...
Bb5 {[%clk 0:02:00.4]} 28. Nd2 {[%clk 0:01:58.6]} 28... Nd6 {[%clk 0:01:58.2]}
29. Ke3 {[%clk 0:01:57.4]} 29... Bc4 {[%clk 0:01:51.8]} 30. a3 {[%clk
0:01:55.3]} 30... Bb5 {[%clk 0:01:52.1]} 31. h4 {[%clk 0:01:48]} 31... a5 {[%clk
0:01:50.6]} 32. b4 {[%clk 0:01:46.8]} 32... cxb4 {[%clk 0:01:48.7]} 33. cxb4
{[%clk 0:01:47.1]} 33... a4 {[%clk 0:01:45.1]} 34. Bd1 {[%clk 0:01:42.5]} 34...
Bc6 {[%clk 0:01:41.6]} 35. Bc2 {[%clk 0:01:39.6]} 35... Bb5 {[%clk 0:01:21.2]}
36. Bd1 {[%clk 0:01:30.1]} 36... h6 {[%clk 0:01:18.6]} 37. Bc2 {[%clk
0:01:18.8]} 37... Kd7 {[%clk 0:01:15.9]} 38. Bd3 {[%clk 0:01:07.9]} 38... Bxd3
{[%clk 0:01:09.6]} 39. Kxd3 {[%clk 0:01:08.2]} 39... b5 {[%clk 0:01:10.5]} 40.
Nb1 {[%clk 0:01:05.8]} 40... exf4 {[%clk 0:00:49.6]} 41. gxf4 {[%clk 0:01:05.7]}
41... Nc4 {[%clk 0:00:50.2]} 42. Kd4 {[%clk 0:00:59]} 42... Ke6 {[%clk
0:00:49.2]} 43. Kc5 {[%clk 0:00:50.6]} 43... g5 {[%clk 0:00:47.3]} 44. fxg5
{[%clk 0:00:50.5]} 44... fxg5 {[%clk 0:00:45]} 45. hxg5 {[%clk 0:00:50.7]} 45...
hxg5 {[%clk 0:00:45.9]} 46. Kxb5 {[%clk 0:00:50.4]} 46... Nd6+ {[%clk
0:00:42.1]} 47. Kxa4 {[%clk 0:00:49.7]} 47... Nxe4 {[%clk 0:00:40]} 48. b5
{[%clk 0:00:48.1]} 48... g4 {[%clk 0:00:38.2]} 49. b6 {[%clk 0:00:48.3]} 49...
Kd6 {[%clk 0:00:35.9]} 50. Ka5 {[%clk 0:00:48.2]} 50... g3 {[%clk 0:00:34.2]}
51. Ka6 {[%clk 0:00:48.4]} 51... g2 {[%clk 0:00:32.5]} 52. b7 {[%clk 0:00:48.8]}
52... Nc5+ {[%clk 0:00:32.8]} 53. Kb6 {[%clk 0:00:47.8]} 53... Nxb7 {[%clk
0:00:33.7]} 54. Kxb7 {[%clk 0:00:47]} 54... g1=Q {[%clk 0:00:31]} 55. Nc3 {[%clk
0:00:47.9]} 55... Qg2+ {[%clk 0:00:28]} 56. Ka7 {[%clk 0:00:34.9]} 56... Kc5
{[%clk 0:00:24.5]} 57. a4 {[%clk 0:00:33.1]} 57... Qg7+ {[%clk 0:00:22.2]} 0-1

[Event "*** SCC Grand Prix: Titled Tuesday Blitz"]
[Site "Chess.com"]
[Date "2020.07.14"]
[Round "10"]
[White "ljuks68"]
[Black "SargissyanSargis"]
[Result "1-0"]
[WhiteElo "2441"]
[BlackElo "2299"]
[TimeControl "180+1"]
[EndTime "11:59:08 PDT"]
[Termination "ljuks68 won on time"]

1. e4 {[%clk 0:03:00.9]} 1... e5 {[%clk 0:02:59.5]} 2. Nf3 {[%clk 0:03:00.9]}
2... Nc6 {[%clk 0:03:00]} 3. Bb5 {[%clk 0:03:01]} 3... a6 {[%clk 0:02:59.1]} 4.
Ba4 {[%clk 0:03:01.1]} 4... Nf6 {[%clk 0:02:58.8]} 5. Qe2 {[%clk 0:02:59.6]}
5... b5 {[%clk 0:02:57.7]} 6. Bb3 {[%clk 0:02:59.8]} 6... Be7 {[%clk 0:02:45.6]}
7. c3 {[%clk 0:02:58.3]} 7... O-O {[%clk 0:02:44.8]} 8. d4 {[%clk 0:02:58.3]}
8... d6 {[%clk 0:02:33.4]} 9. O-O {[%clk 0:02:57.2]} 9... Bb7 {[%clk 0:02:31.1]}
10. Rd1 {[%clk 0:02:57]} 10... exd4 {[%clk 0:01:59.8]} 11. cxd4 {[%clk
0:02:56.1]} 11... d5 {[%clk 0:02:00.4]} 12. e5 {[%clk 0:02:51.2]} 12... Ne4
{[%clk 0:02:00.7]} 13. Nc3 {[%clk 0:02:47.7]} 13... Na5 {[%clk 0:01:36.6]} 14.
Bc2 {[%clk 0:02:46.5]} 14... f5 {[%clk 0:01:21.2]} 15. exf6 {[%clk 0:02:37]}
15... Bxf6 {[%clk 0:01:21.2]} 16. Bf4 {[%clk 0:02:10.2]} 16... Re8 {[%clk
0:01:14.9]} 17. Ne5 {[%clk 0:02:02.2]} 17... Nc4 {[%clk 0:01:06.3]} 18. Nxe4
{[%clk 0:01:28.9]} 18... dxe4 {[%clk 0:01:02.5]} 19. Bxe4 {[%clk 0:01:27.3]}
19... Bxe4 {[%clk 0:01:00.5]} 20. Qxe4 {[%clk 0:01:25.8]} 20... Nxb2 {[%clk
0:01:00.9]} 21. Re1 {[%clk 0:01:15]} 21... Nc4 {[%clk 0:01:00.1]} 22. Rad1
{[%clk 0:01:09.2]} 22... Bxe5 {[%clk 0:00:16.2]} 23. dxe5 {[%clk 0:00:57]} 23...
Qe7 {[%clk 0:00:16.4]} 24. e6 {[%clk 0:00:57]} 24... Rad8 {[%clk 0:00:15.9]} 25.
Rxd8 {[%clk 0:00:47]} 25... Rxd8 {[%clk 0:00:15.8]} 26. h4 {[%clk 0:00:44.4]}
26... Nd6 {[%clk 0:00:10.1]} 27. Qd5 {[%clk 0:00:37.7]} 27... Re8 {[%clk
0:00:08.9]} 28. Bg5 {[%clk 0:00:35.9]} 28... Qf8 {[%clk 0:00:07.5]} 29. Qc6
{[%clk 0:00:30.7]} 29... h6 {[%clk 0:00:06.8]} 30. Bc1 {[%clk 0:00:28.2]} 30...
Qe7 {[%clk 0:00:06.9]} 31. Bb2 {[%clk 0:00:27.8]} 31... Kh8 {[%clk 0:00:06.3]}
32. Re3 {[%clk 0:00:24.7]} 32... Nc4 {[%clk 0:00:06.1]} 33. Rg3 {[%clk
0:00:23.1]} 33... Nxb2 {[%clk 0:00:05.9]} 34. Qxa6 {[%clk 0:00:18.7]} 34... Qxe6
{[%clk 0:00:05.3]} 35. Qxb5 {[%clk 0:00:18.6]} 35... Nc4 {[%clk 0:00:05.2]} 36.
a4 {[%clk 0:00:16.3]} 36... Nd6 {[%clk 0:00:05.1]} 37. Qc6 {[%clk 0:00:15.9]}
37... Qe1+ {[%clk 0:00:04.3]} 38. Kh2 {[%clk 0:00:15.6]} 38... Qe7 {[%clk
0:00:03.5]} 39. a5 {[%clk 0:00:15.2]} 39... Qxh4+ {[%clk 0:00:03.4]} 40. Rh3
{[%clk 0:00:14.3]} 40... Qf4+ {[%clk 0:00:03.5]} 41. Rg3 {[%clk 0:00:13.8]}
41... Rf8 {[%clk 0:00:01.8]} 42. Qxc7 {[%clk 0:00:08.7]} 1-0

[Event "*** SCC Grand Prix: Titled Tuesday Blitz"]
[Site "Chess.com"]
[Date "2020.07.14"]
[Round "10"]
[White "Shushik"]
[Black "stolencandy13"]
[Result "0-1"]
[WhiteElo "2205"]
[BlackElo "2406"]
[TimeControl "180+1"]
[EndTime "11:59:08 PDT"]
[Termination "stolencandy13 won by resignation"]

1. e4 {[%clk 0:03:00.9]} 1... c6 {[%clk 0:02:59.1]} 2. d4 {[%clk 0:03:00.1]}
2... d5 {[%clk 0:03:00]} 3. Nc3 {[%clk 0:02:59.7]} 3... dxe4 {[%clk 0:03:00.3]}
4. Nxe4 {[%clk 0:02:59.7]} 4... Bf5 {[%clk 0:03:01.2]} 5. Ng3 {[%clk 0:02:59.8]}
5... Bg6 {[%clk 0:03:02.1]} 6. Nf3 {[%clk 0:03:00]} 6... Nd7 {[%clk 0:03:02]} 7.
Bd3 {[%clk 0:02:59.9]} 7... e6 {[%clk 0:03:01.8]} 8. O-O {[%clk 0:02:59.3]} 8...
Ngf6 {[%clk 0:03:01.4]} 9. c4 {[%clk 0:02:58.7]} 9... Be7 {[%clk 0:03:01.6]} 10.
b3 {[%clk 0:02:58.5]} 10... O-O {[%clk 0:03:00.4]} 11. Bb2 {[%clk 0:02:58.5]}
11... Rc8 {[%clk 0:03:00.5]} 12. Re1 {[%clk 0:02:58.4]} 12... c5 {[%clk
0:02:55.9]} 13. Bxg6 {[%clk 0:02:48.7]} 13... hxg6 {[%clk 0:02:55.7]} 14. Qe2
{[%clk 0:02:40.4]} 14... cxd4 {[%clk 0:02:53.1]} 15. Nxd4 {[%clk 0:02:39.9]}
15... Qb6 {[%clk 0:02:45.2]} 16. Rad1 {[%clk 0:02:37.3]} 16... Rfd8 {[%clk
0:02:44.8]} 17. Nf3 {[%clk 0:02:30.2]} 17... Bb4 {[%clk 0:02:43.5]} 18. Rf1
{[%clk 0:02:27.2]} 18... Be7 {[%clk 0:02:39]} 19. Rfe1 {[%clk 0:02:25.5]} 19...
Nc5 {[%clk 0:02:33.4]} 20. Ne5 {[%clk 0:02:20.4]} 20... Rxd1 {[%clk 0:02:32.2]}
21. Rxd1 {[%clk 0:02:19.6]} 21... Rd8 {[%clk 0:02:32.5]} 22. Rd2 {[%clk
0:02:13.4]} 22... Rxd2 {[%clk 0:02:31.4]} 23. Qxd2 {[%clk 0:02:13]} 23... Qd6
{[%clk 0:02:30.8]} 24. Qxd6 {[%clk 0:02:10.4]} 24... Bxd6 {[%clk 0:02:31.7]} 25.
Kf1 {[%clk 0:02:09.1]} 25... Nfe4 {[%clk 0:02:27.8]} 26. Nxe4 {[%clk 0:02:07.8]}
26... Nxe4 {[%clk 0:02:28.7]} 27. Ke2 {[%clk 0:02:07.3]} 27... Kf8 {[%clk
0:02:26.5]} 28. f3 {[%clk 0:02:05.9]} 28... Nf6 {[%clk 0:02:22.4]} 29. Nd3
{[%clk 0:02:02.8]} 29... Nd7 {[%clk 0:02:21.3]} 30. g3 {[%clk 0:02:00.4]} 30...
g5 {[%clk 0:02:19.3]} 31. Bd4 {[%clk 0:01:58]} 31... a6 {[%clk 0:02:16.8]} 32.
c5 {[%clk 0:01:57.2]} 32... Bb8 {[%clk 0:02:12.5]} 33. b4 {[%clk 0:01:55.7]}
33... f6 {[%clk 0:02:09.4]} 34. Nb2 {[%clk 0:01:53.9]} 34... Ke7 {[%clk
0:02:09.1]} 35. Nc4 {[%clk 0:01:53.2]} 35... e5 {[%clk 0:02:08.4]} 36. Be3
{[%clk 0:01:52.7]} 36... Ke6 {[%clk 0:02:08.8]} 37. Na5 {[%clk 0:01:51.3]} 37...
b5 {[%clk 0:01:49.2]} 38. cxb6 {[%clk 0:01:48.2]} 38... Kd5 {[%clk 0:01:45.7]}
39. Kd3 {[%clk 0:01:45.4]} 39... f5 {[%clk 0:01:35.8]} 40. a4 {[%clk 0:01:40.4]}
40... g4 {[%clk 0:01:28.4]} 41. fxg4 {[%clk 0:01:38.8]} 41... e4+ {[%clk
0:01:26.3]} 42. Kc3 {[%clk 0:01:35.5]} 42... fxg4 {[%clk 0:01:26.7]} 43. Nc4
{[%clk 0:01:34.2]} 43... Ne5 {[%clk 0:01:12.2]} 44. Bf4 {[%clk 0:01:03]} 44...
Nxc4 {[%clk 0:01:08.7]} 45. Bxb8 {[%clk 0:01:02]} 45... Nxb6 {[%clk 0:01:08.7]}
46. a5 {[%clk 0:01:01]} 46... Nd7 {[%clk 0:01:03.5]} 47. Bf4 {[%clk 0:00:58]}
47... Nf6 {[%clk 0:00:53.6]} 48. Be3 {[%clk 0:00:56.6]} 48... Nd7 {[%clk
0:00:42.6]} 49. b5 {[%clk 0:00:54.2]} 49... axb5 {[%clk 0:00:39.7]} 50. a6
{[%clk 0:00:51]} 50... Kc6 {[%clk 0:00:35.3]} 51. Kb4 {[%clk 0:00:50.4]} 51...
Nf6 {[%clk 0:00:30.9]} 52. a7 {[%clk 0:00:48.9]} 52... Nd5+ {[%clk 0:00:28.9]}
53. Ka5 {[%clk 0:00:45.5]} 53... Kb7 {[%clk 0:00:28.8]} 54. Bd4 {[%clk
0:00:42.9]} 54... b4 {[%clk 0:00:24.3]} 55. Bxg7 {[%clk 0:00:41.6]} 55... e3
{[%clk 0:00:23.9]} 56. Bd4 {[%clk 0:00:38.4]} 56... e2 {[%clk 0:00:24]} 57. Bf2
{[%clk 0:00:37.9]} 57... b3 {[%clk 0:00:24.5]} 0-1

[Event "*** SCC Grand Prix: Titled Tuesday Blitz"]
[Site "Chess.com"]
[Date "2020.07.14"]
[Round "10"]
[White "PattyCastillo"]
[Black "NotFischer"]
[Result "1/2-1/2"]
[WhiteElo "1956"]
[BlackElo "2130"]
[TimeControl "180+1"]
[EndTime "11:59:08 PDT"]
[Termination "Game drawn by repetition"]

1. d4 {[%clk 0:03:00.9]} 1... Nf6 {[%clk 0:02:59.2]} 2. Nf3 {[%clk 0:03:00.5]}
2... d6 {[%clk 0:02:58.8]} 3. Nc3 {[%clk 0:02:58.8]} 3... c6 {[%clk 0:02:56.3]}
4. e4 {[%clk 0:02:58.7]} 4... Bg4 {[%clk 0:02:51.1]} 5. Be2 {[%clk 0:02:55.1]}
5... Nbd7 {[%clk 0:02:49.7]} 6. h3 {[%clk 0:02:54.7]} 6... Bxf3 {[%clk
0:02:47.2]} 7. Bxf3 {[%clk 0:02:55.6]} 7... e5 {[%clk 0:02:47.3]} 8. dxe5 {[%clk
0:02:46.8]} 8... dxe5 {[%clk 0:02:47.1]} 9. O-O {[%clk 0:02:45.8]} 9... Be7
{[%clk 0:02:38.4]} 10. Be3 {[%clk 0:02:43.7]} 10... O-O {[%clk 0:02:36.2]} 11.
Qe2 {[%clk 0:02:42.4]} 11... Qc7 {[%clk 0:02:34.5]} 12. Rfd1 {[%clk 0:02:42]}
12... Rfd8 {[%clk 0:02:33.9]} 13. a3 {[%clk 0:02:41.3]} 13... Nc5 {[%clk
0:02:28.3]} 14. b4 {[%clk 0:02:33.8]} 14... Ne6 {[%clk 0:02:27.7]} 15. g3 {[%clk
0:02:32.5]} 15... a5 {[%clk 0:02:16]} 16. b5 {[%clk 0:02:27.4]} 16... Nd4 {[%clk
0:01:57]} 17. Bxd4 {[%clk 0:02:24]} 17... exd4 {[%clk 0:01:57.3]} 18. Na4 {[%clk
0:02:21.3]} 18... Qe5 {[%clk 0:01:46.4]} 19. bxc6 {[%clk 0:02:14.9]} 19... bxc6
{[%clk 0:01:41.2]} 20. Nb6 {[%clk 0:02:05.4]} 20... Rab8 {[%clk 0:01:26.5]} 21.
Nc4 {[%clk 0:02:05.2]} 21... Qb5 {[%clk 0:01:16.1]} 22. a4 {[%clk 0:01:34.1]}
22... Qc5 {[%clk 0:00:51.8]} 23. Rab1 {[%clk 0:01:10.7]} 23... Rb4 {[%clk
0:00:48]} 24. Nb2 {[%clk 0:00:51.1]} 24... Qc3 {[%clk 0:00:24.2]} 25. Rd3 {[%clk
0:00:38.9]} 25... Rxb2 {[%clk 0:00:23.9]} 26. Rxc3 {[%clk 0:00:33.7]} 26...
Rxb1+ {[%clk 0:00:24.2]} 27. Kg2 {[%clk 0:00:34.2]} 27... dxc3 {[%clk
0:00:25.1]} 28. Qc4 {[%clk 0:00:26.9]} 28... Bb4 {[%clk 0:00:23]} 29. Qxc6
{[%clk 0:00:25.9]} 29... Rd2 {[%clk 0:00:17.2]} 30. Qc8+ {[%clk 0:00:18.6]}
30... Bf8 {[%clk 0:00:17]} 31. e5 {[%clk 0:00:18.7]} 31... Nd5 {[%clk
0:00:14.6]} 32. Bxd5 {[%clk 0:00:18.5]} 32... Rxd5 {[%clk 0:00:14.5]} 33. e6
{[%clk 0:00:12.9]} 33... fxe6 {[%clk 0:00:14.8]} 34. Qxe6+ {[%clk 0:00:12.6]}
34... Kh8 {[%clk 0:00:15.3]} 35. Qxd5 {[%clk 0:00:13]} 35... Rb2 {[%clk
0:00:13.3]} 36. Qd8 {[%clk 0:00:11]} 36... Kg8 {[%clk 0:00:12.1]} 37. Qd5+
{[%clk 0:00:11]} 37... Kh8 {[%clk 0:00:12.7]} 38. Qf7 {[%clk 0:00:11.3]} 38...
Rb8 {[%clk 0:00:09]} 39. Qc4 {[%clk 0:00:09]} 39... Bb4 {[%clk 0:00:07.9]} 40.
Qf4 {[%clk 0:00:07.8]} 40... Rf8 {[%clk 0:00:06.9]} 41. Qc4 {[%clk 0:00:07.2]}
41... h6 {[%clk 0:00:07.4]} 42. Qb5 {[%clk 0:00:07.3]} 42... Rd8 {[%clk
0:00:06.9]} 43. h4 {[%clk 0:00:05.8]} 43... Rd2 {[%clk 0:00:07]} 44. Qf5 {[%clk
0:00:03.9]} 44... Re2 {[%clk 0:00:04.7]} 45. Qc8+ {[%clk 0:00:03.9]} 45... Kh7
{[%clk 0:00:04.4]} 46. Qf5+ {[%clk 0:00:04.4]} 46... Kh8 {[%clk 0:00:04.6]} 47.
Qc8+ {[%clk 0:00:04.5]} 47... Kh7 {[%clk 0:00:05.1]} 48. Qf5+ {[%clk 0:00:04.6]}
48... Kg8 {[%clk 0:00:05.6]} 49. Qc8+ {[%clk 0:00:04]} 49... Kh7 {[%clk
0:00:06]} 1/2-1/2